bitfinex/quotes_SOLUSD_20241125
["timestamp","ask_amount","ask_price","bid_price","bid_amount"]
[1732576942610,20.52133282,237.16,237.07,20.52133282]
[1732576942907,20.52133282,237.16,237.05,4.34399]
[1732576943113,2.9513,237.18,237.09,20.52133282]
[1732576943411,2.951,237.21,237.13,20.52133282]
[1732576944111,20.52133282,237.2,237.11,20.52133282]
[1732576944300,20.52133282,237.24,237.15,20.52133282]
[1732576944690,2.9499,237.29,237.13,20.52133282]
[1732576944691,20.52133282,237.22,237.13,20.52133282]
[1732576945090,20.52133282,237.22,237.13,24.73833282]
[1732576945295,20.52133282,237.2,237.13,24.73833282]
[1732576946491,20.52133282,237.22,237.13,24.73833282]
[1732576946916,23.47213282,237.22,237.13,24.73833282]
[1732576947291,23.47213282,237.22,237.07,20.64682282]
[1732576947292,20.52133282,237.16,237.07,20.64682282]
[1732576947703,20.52133282,237.16,237.05,10.5462]
[1732576947704,20.52133282,237.14,237.04,6.1944]
[1732576947900,20.52133282,237.12,237.05,20.52133282]
[1732576948111,20.52133282,237.09,237.02,4.2189]
[1732576948620,6.1605,237.17,237.03,20.52133282]
[1732576948621,20.52133282,237.11,237.03,20.52133282]
[1732576948795,20.52133282,237.13,237.03,20.52133282]
[1732576949493,20.52133282,237.13,237.05,20.52133282]
[1732576950720,20.52133282,237.15,237.06,4.2183]
[1732576951991,23.47303282,237.15,237.06,4.2183]
[1732576956920,23.47303282,237.15,237.05,20.52133282]
[1732576956921,20.52133282,237.13,237.05,20.52133282]
[1732576957101,20.52133282,237.11,237.04,4.2186]
[1732576957302,20.52133282,237.09,237.01,20.52133282]
[1732576957496,10.3309,237.15,236.96,26.0559]
[1732576957497,20.52133282,237.07,236.98,24.74103282]
[1732576957702,20.52133282,237.05,236.98,4.2197]
[1732576957904,20.0,237.02,236.94,20.52133282]
[1732576958199,20.52133282,237.01,236.93,4.2206]
[1732576959007,23.776884,237.03,236.94,20.52133282]
[1732576959205,20.52133282,237.02,236.94,20.52133282]
[1732576959913,20.52133282,237.04,236.96,20.52133282]
[1732576960115,20.52133282,237.04,236.95,0.12549]
[1732576960116,20.52133282,237.04,236.94,20.52133282]
[1732576960330,2.9529,237.06,236.92,4.2207]
[1732576960331,20.52133282,237.02,236.92,24.74203282]
[1732576961005,23.47473282,237.02,236.92,24.74203282]
[1732576961213,20.52133282,237.02,236.92,24.74203282]
[1732576961434,20.52133282,237.02,236.94,20.52133282]
[1732576962322,20.52133282,237.04,236.94,20.52133282]
[1732576962904,20.52133282,237.04,236.95,4.2202]
[1732576965027,20.52133282,237.02,236.94,20.52133282]
[1732576965323,20.52133282,237.02,236.92,24.74213282]
[1732576965728,20.52133282,237.04,236.94,20.52133282]
[1732576965908,20.52133282,237.04,236.96,20.52133282]
[1732576966807,20.52133282,237.02,236.94,20.52133282]
[1732576967109,20.52133282,237.02,236.92,20.52133282]
[1732576967738,20.52133282,237.02,236.94,20.52133282]
[1732576968615,20.52133282,237.0,236.91,16.5069]
[1732576968825,20.52133282,236.98,236.89,4.2211]
[1732576969025,20.52133282,236.96,236.88,0.4896887]
[1732576969324,20.52133282,236.92,236.88,0.4896887]
[1732576970331,12.84703779,236.92,236.88,0.4896887]
[1732576970505,15.80133779,236.94,236.88,0.4896887]
[1732576972521,23.50673336,236.94,236.88,0.4896887]
[1732576972915,20.55243336,236.94,236.88,0.4896887]
[1732576973127,23.50673336,236.94,236.88,0.4896887]
[1732576973328,20.55243336,236.9,236.88,0.4896887]
[1732576973836,23.776884,236.89,236.88,0.4896887]
[1732576974012,44.32931736,236.89,236.88,0.4896887]
[1732576974416,23.776884,236.89,236.88,0.4896887]
[1732576975045,23.776884,236.89,236.7,16.2422]
[1732576975046,47.28421736,236.89,236.7,16.2422]
[1732576975336,20.55243336,236.79,236.71,20.55243336]
[1732576975733,20.55243336,236.8,236.72,20.55243336]
[1732576975910,44.32931736,236.82,236.72,20.55243336]
[1732576976112,20.55243336,236.84,236.76,20.55243336]
[1732576976309,20.55243336,236.82,236.74,20.55243336]
[1732576976531,20.55243336,236.84,236.76,20.55243336]
[1732576976913,20.55243336,236.84,236.71,0.12549]
[1732576977115,20.55243336,236.84,236.75,20.55243336]
[1732576979046,20.55243336,236.84,236.75,24.77613336]
[1732576979615,20.55243336,236.82,236.75,20.55243336]
[1732576979939,20.55243336,236.82,236.73,44.77653336]
[1732576980237,20.55243336,236.8,236.71,24.77693336]
[1732576980425,20.55243336,236.8,236.73,20.55243336]
[1732576980820,20.55243336,236.8,236.71,4.2245]
[1732576980821,20.55243336,236.8,236.71,24.77693336]
[1732576981018,20.55243336,236.8,236.73,20.55243336]
[1732576981420,20.55243336,236.83,236.73,20.55243336]
[1732576982542,23.50813336,236.83,236.73,20.55243336]
[1732576982740,20.55243336,236.81,236.73,20.55243336]
[1732576982944,20.55243336,236.81,236.73,24.77653336]
[1732576983318,20.55243336,236.83,236.75,20.55243336]
[1732576983716,20.55243336,236.89,236.79,20.55243336]
[1732576983939,20.55243336,236.87,236.79,20.55243336]
[1732576984620,20.55243336,236.87,236.8,4.2229]
[1732576986627,20.55243336,236.83,236.74,0.12549]
[1732576986840,20.55243336,236.83,236.74,4.2239]
[1732576987048,20.55243336,236.81,236.73,20.55243336]
[1732576987225,20.55243336,236.81,236.71,36.22133336]
[1732576987436,20.55243336,236.79,236.71,36.22133336]
[1732576987940,20.55243336,236.81,236.73,20.55243336]
[1732576988250,20.55243336,236.85,236.77,20.55243336]
[1732576988563,20.55243336,236.87,236.77,20.55243336]
[1732576988855,23.50763336,236.87,236.78,4.2233]
[1732576989027,20.55243336,236.87,236.79,20.55243336]
[1732576989230,20.55243336,236.83,236.75,20.55243336]
[1732576990340,20.55243336,236.85,236.75,24.77623336]
[1732576990556,20.55243336,236.85,236.77,20.55243336]
[1732576991853,20.55243336,236.87,236.79,20.55243336]
[1732576992333,20.55243336,236.89,236.8,0.12549]
[1732576992729,20.55243336,236.92,236.83,20.55243336]
[1732576993062,20.55243336,236.92,236.85,20.55243336]
[1732576994144,20.55243336,236.96,236.87,20.55243336]
[1732576994355,23.50653336,236.96,236.87,20.55243336]
[1732576994659,23.50653336,236.96,236.86,0.12549]
[1732576994660,20.55243336,236.92,236.85,4.222]
[1732576994953,20.55243336,236.92,236.84,15.2391]
[1732576995840,2.9541,236.96,236.85,20.67792336]
[1732576995841,20.55243336,236.94,236.85,20.67792336]
[1732576996155,20.55243336,236.94,236.88,0.12549]
[1732576996332,20.55243336,237.0,236.92,20.55243336]
[1732576998333,20.55243336,237.0,236.93,0.12549]
[1732576998536,20.55243336,237.02,236.93,0.12549]
[1732576998958,20.55243336,237.02,236.94,20.55243336]
[1732576999161,20.55243336,236.98,236.91,6.4638]
[1732576999959,20.55243336,236.96,236.88,20.55243336]
[1732577000164,20.55243336,236.96,236.88,24.77393336]
[1732577000540,20.55243336,236.96,236.89,0.12549]
[1732577000740,20.55243336,236.98,236.91,0.12549]
[1732577000946,20.55243336,237.0,236.92,20.55243336]
[1732577001143,20.55243336,237.02,236.94,20.55243336]
[1732577001553,20.55243336,237.04,236.96,20.55243336]
[1732577001759,2.9529,237.05,236.88,35.32773336]
[1732577001760,20.55243336,237.0,236.92,20.55243336]
[1732577002061,20.55243336,236.96,236.86,20.55243336]
[1732577002364,20.55243336,236.94,236.86,20.55243336]
[1732577003358,20.55243336,236.87,236.84,15.2391]
[1732577003569,20.55243336,236.87,236.7,2.02286958]
[1732577003570,20.55243336,236.87,236.79,20.55243336]
[1732577003952,20.55243336,236.89,236.81,20.55243336]
[1732577004362,20.55243336,236.89,236.8,0.12549]
[1732577004665,20.55243336,236.85,236.78,15.2391]
[1732577004851,20.55243336,236.83,236.74,20.55243336]
[1732577005039,20.55243336,236.88,236.7,17.26196958]
[1732577005040,20.55243336,236.81,236.72,20.55243336]
[1732577005247,20.55243336,236.81,236.7,21.48656958]
[1732577005248,20.55243336,236.79,236.7,37.81440294]
[1732577005676,2.9561,236.8,236.72,20.55243336]
[1732577006043,2.9561,236.8,236.7,17.26196958]
[1732577006044,20.0,236.78,236.7,37.81440294]
[1732577006244,20.55243336,236.79,236.7,37.81440294]
[1732577006668,2.9561,236.8,236.72,20.55243336]
[1732577006862,20.0,236.78,236.72,20.55243336]
[1732577008374,20.0,236.78,236.7,36.81440294]
[1732577008673,20.0,236.78,236.7,35.79153336]
[1732577008852,20.55243336,236.77,236.7,35.79153336]
[1732577009049,20.55243336,236.72,236.65,0.4896887]
[1732577009258,20.55243336,236.67,236.65,0.4896887]
[1732577009747,23.776884,236.66,236.65,0.4896887]
[1732577010069,20.0,236.59,236.52,1.97264592]
[1732577010261,20.55243336,236.55,236.48,16.1104]
[1732577010576,20.55243336,236.59,236.52,20.55243336]
[1732577011046,20.55243336,236.61,236.52,20.55243336]
[1732577011381,20.55243336,236.61,236.52,18.55243336]
[1732577011874,20.55243336,236.61,236.52,22.78033336]
[1732577012253,20.55243336,236.61,236.54,20.55243336]
[1732577012453,20.55243336,236.61,236.52,20.55243336]
[1732577013177,20.55243336,236.59,236.52,20.55243336]
[1732577013359,20.55243336,236.57,236.48,36.66283336]
[1732577013979,20.55243336,236.55,236.48,36.66283336]
[1732577014270,20.55243336,236.55,236.48,16.1104]
[1732577014681,20.55243336,236.53,236.48,16.1104]
[1732577015054,20.55243336,236.53,236.44,20.55243336]
[1732577015255,20.55243336,236.51,236.42,20.55243336]
[1732577016256,20.55243336,236.51,236.44,20.55243336]
[1732577016490,20.55243336,236.51,236.42,20.55243336]
[1732577016874,20.55243336,236.49,236.41,0.4896887]
[1732577017269,23.776884,236.44,236.41,0.4896887]
[1732577017485,20.55243336,236.45,236.41,0.4896887]
[1732577017693,23.776884,236.46,236.41,0.4896887]
[1732577017858,20.55243336,236.45,236.41,0.4896887]
[1732577018589,20.55243336,236.47,236.41,0.4896887]
[1732577018764,20.55243336,236.49,236.41,0.4896887]
[1732577019165,20.55243336,236.51,236.42,20.55243336]
[1732577019483,20.55243336,236.49,236.41,0.4896887]
[1732577019673,20.55243336,236.49,236.41,21.04212206]
[1732577020067,20.55243336,236.45,236.41,0.4896887]
[1732577020797,20.55243336,236.49,236.41,21.04212206]
[1732577021663,20.55243336,236.49,236.41,25.27192206]
[1732577023171,20.55243336,236.49,236.41,21.04212206]
[1732577023386,20.55243336,236.49,236.41,25.27192206]
[1732577023691,20.55243336,236.49,236.41,4.7194887]
[1732577023894,20.55243336,236.49,236.41,0.4896887]
[1732577024472,20.55243336,236.49,236.41,4.7194887]
[1732577024691,20.55243336,236.51,236.42,20.55243336]
[1732577024893,20.55243336,236.51,236.42,15.1975]
[1732577025067,20.55243336,236.51,236.43,20.55243336]
[1732577025267,2.9595,236.53,236.43,20.55243336]
[1732577025268,23.776884,236.52,236.43,20.55243336]
[1732577025488,20.55243336,236.55,236.47,20.55243336]
[1732577026534,20.55243336,236.55,236.46,0.12549]
[1732577026798,20.55243336,236.53,236.45,4.2291]
[1732577027876,20.55243336,236.55,236.46,0.12549]
[1732577028095,20.55243336,236.55,236.47,20.55243336]
[1732577028288,20.55243336,236.57,236.49,20.55243336]
[1732577028599,20.55243336,236.55,236.46,20.12549]
[1732577028805,20.55243336,236.55,236.46,0.12549]
[1732577028978,20.55243336,236.53,236.46,0.12549]
[1732577030392,20.55243336,236.53,236.47,4.2288]
[1732577031901,20.55243336,236.55,236.47,4.2288]
[1732577032610,7.3961,236.61,236.44,4.2292]
[1732577032611,20.55243336,236.52,236.44,4.2292]
[1732577033103,20.55243336,236.48,236.42,15.1975]
[1732577035093,20.55243336,236.46,236.41,0.4896887]
[1732577036407,2.9599,236.49,236.41,0.4896887]
[1732577036408,20.55243336,236.48,236.41,0.4896887]
[1732577036792,20.55243336,236.48,236.41,21.04212206]
[1732577036991,20.55243336,236.48,236.41,25.27202206]
[1732577038191,20.55243336,236.48,236.41,0.4896887]
[1732577038392,15.854928,236.48,236.41,0.4896887]
[1732577039299,12.894828,236.48,236.41,0.4896887]
[1732577039610,15.854728,236.5,236.41,17.6143167]
[1732577039789,12.894828,236.5,236.42,0.12549]
[1732577040297,12.894828,236.48,236.41,13.3845167]
[1732577040606,12.894828,236.48,236.41,0.4896887]
[1732577040983,12.894828,236.48,236.42,0.12549]
[1732577041185,12.894828,236.52,236.44,0.12549]
[1732577041388,12.894828,236.54,236.46,0.12549]
[1732577041812,12.894828,236.56,236.47,12.894828]
[1732577042312,2.9589,236.58,236.41,15.2942887]
[1732577042313,12.894828,236.58,236.49,12.894828]
[1732577042511,12.894828,236.58,236.51,0.12549]
[1732577044610,12.894828,236.58,236.51,4.2281]
[1732577045711,12.894828,236.6,236.52,0.12549]
[1732577046313,12.894828,236.62,236.55,0.12549]
[1732577046626,12.894828,236.64,236.56,4.2272]
[1732577046921,12.894828,236.62,236.56,4.2272]
[1732577047087,12.894828,236.62,236.54,4.2274]
[1732577047287,2.9579,236.65,236.54,4.2274]
[1732577047288,12.894828,236.6,236.54,4.2274]
[1732577047489,12.894828,236.6,236.55,0.12549]
[1732577048107,12.894828,236.62,236.55,4.2273]
[1732577048417,12.894828,236.64,236.55,4.2273]
[1732577048599,15.852728,236.66,236.58,12.894828]
[1732577048918,15.852728,236.66,236.56,0.12549]
[1732577048919,15.852728,236.66,236.56,13.020318]
[1732577049228,12.894828,236.66,236.58,12.894828]
[1732577049516,12.894828,236.66,236.55,4.2273]
[1732577049517,12.894828,236.72,236.64,12.894828]
[1732577049720,12.894828,236.7,236.62,12.894828]
[1732577049901,2.9565,236.76,236.64,12.894828]
[1732577049902,12.894828,236.72,236.64,12.894828]
[1732577050101,160.3695,236.83,236.64,12.894828]
[1732577050102,2.9554,236.85,236.65,0.12549]
[1732577050307,10.3441,236.85,236.73,12.894828]
[1732577050495,10.3441,236.85,236.67,0.12549]
[1732577050496,2.9554,236.85,236.67,0.12549]
[1732577050692,2.9554,236.85,236.71,20.0]
[1732577050899,2.9554,236.85,236.72,6.0145]
[1732577051322,12.894828,236.84,236.75,12.894828]
[1732577051693,2.9557,236.83,236.75,12.894828]
[1732577051901,23.776884,236.82,236.77,12.894828]
[1732577052310,23.776884,236.82,236.76,20.56916911]
[1732577052513,2.9554,236.85,236.78,20.56916911]
[1732577053098,20.0,236.86,236.8,20.56916911]
[1732577053400,2.9549,236.9,236.82,20.56916911]
[1732577054125,30.0,236.83,236.76,20.56916911]
[1732577054300,30.0,236.83,236.78,20.56916911]
[1732577055105,32.9557,236.83,236.76,20.56916911]
[1732577055311,30.0,236.83,236.78,20.56916911]
[1732577055502,32.9557,236.83,236.78,20.56916911]
[1732577055698,30.0,236.83,236.78,20.56916911]
[1732577056920,23.776884,236.82,236.76,20.56916911]
[1732577057110,30.0,236.79,236.76,20.56916911]
[1732577057805,30.0,236.79,236.78,20.56916911]
[1732577058321,30.0,236.79,236.73,0.12549]
[1732577058626,30.0,236.79,236.78,20.56916911]
[1732577063824,30.0,236.79,236.78,20.69465911]
[1732577064233,30.0,236.79,236.78,35.89214911]
[1732577064437,30.0,236.81,236.8,20.12549]
[1732577064608,30.0,236.81,236.8,40.69465911]
[1732577065324,20.56916911,236.94,236.81,0.12549]
[1732577065530,30.0,236.82,236.81,24.34819]
[1732577066731,30.0,236.82,236.81,44.91735911]
[1732577066929,2.9542,236.95,236.84,20.0]
[1732577067128,2.9542,236.95,236.87,20.56916911]
[1732577067635,20.56916911,236.96,236.89,20.56916911]
[1732577067932,7.3831,237.03,236.89,20.56916911]
[1732577067933,23.52296911,236.98,236.89,20.56916911]
[1732577068933,23.52296911,236.98,236.85,0.12549]
[1732577068934,23.52296911,236.98,236.91,20.56916911]
[1732577069109,23.776884,236.97,236.91,20.56916911]
[1732577071328,23.776884,236.97,236.84,6.3105]
[1732577071329,20.56916911,236.94,236.86,20.56916911]
[1732577071561,23.776884,236.93,236.86,20.56916911]
[1732577071711,2.9539,236.97,236.79,6.0894]
[1732577071712,20.56916911,236.9,236.82,20.56916911]
[1732577071911,23.776884,236.91,236.84,20.56916911]
[1732577072343,12.8457966,236.94,236.85,12.8457966]
[1732577072513,12.8457966,236.94,236.87,12.8457966]
[1732577072713,12.8457966,236.96,236.89,12.8457966]
[1732577073710,12.8457966,236.96,236.89,17.0669966]
[1732577074128,12.8457966,236.94,236.87,17.0673966]
[1732577074332,12.8457966,236.92,236.83,12.8457966]
[1732577075414,12.8457966,236.92,236.84,4.2222]
[1732577075614,12.8457966,236.9,236.81,12.8457966]
[1732577075817,12.8457966,236.88,236.79,6.0894]
[1732577076035,23.776884,236.83,236.75,12.8457966]
[1732577076220,12.8457966,236.82,236.74,4.2238]
[1732577076415,12.8457966,236.8,236.73,18.9351966]
[1732577076614,12.8457966,236.8,236.73,12.8457966]
[1732577076913,22.776884,236.81,236.73,12.8457966]
[1732577077121,12.8457966,236.84,236.75,12.8457966]
[1732577077326,12.8457966,236.84,236.77,12.8457966]
[1732577077519,12.8457966,236.86,236.77,12.8457966]
[1732577077929,12.8457966,236.88,236.81,12.8457966]
[1732577078239,23.7868,236.92,236.81,12.8457966]
[1732577078240,12.8457966,236.9,236.81,12.8457966]
[1732577079141,15.8006966,236.9,236.81,17.0684966]
[1732577079444,23.776884,236.91,236.83,12.8457966]
[1732577079818,12.8457966,236.9,236.83,12.8457966]
[1732577080018,12.8457966,236.92,236.83,12.8457966]
[1732577080932,15.8001966,236.94,236.85,12.8457966]
[1732577081129,12.8457966,236.94,236.87,12.8457966]
[1732577081445,2.9533,237.02,236.91,12.8457966]
[1732577081619,12.8457966,237.01,236.93,12.8457966]
[1732577081824,15.7989966,237.03,236.95,12.8457966]
[1732577082046,12.8457966,237.03,236.95,12.8457966]
[1732577082232,12.8457966,237.05,236.95,12.8457966]
[1732577082428,12.8457966,237.03,236.95,12.8457966]
[1732577082628,12.8457966,237.03,236.93,12.8457966]
[1732577083023,12.8457966,237.01,236.93,12.8457966]
[1732577083720,15.7992966,237.01,236.93,12.8457966]
[1732577084840,12.8457966,237.01,236.93,12.8457966]
[1732577085032,12.8457966,237.01,236.93,17.0662966]
[1732577086646,7.3817,237.07,236.93,17.0662966]
[1732577086647,15.7990966,237.03,236.93,17.0662966]
[1732577087022,23.776884,237.02,236.93,17.0662966]
[1732577087446,12.8457966,237.03,236.93,17.0662966]
[1732577087747,23.776884,237.04,236.96,12.8457966]
[1732577088835,26.729984,237.04,236.96,12.8457966]
[1732577089431,26.729984,237.04,236.92,12.8457966]
[1732577089432,12.8457966,237.01,236.92,12.8457966]
[1732577090650,2.9535,237.0,236.92,12.8457966]
[1732577091459,2.9535,237.0,236.92,17.0665966]
[1732577091628,2.9534,237.02,236.94,12.8457966]
[1732577092156,23.776884,237.01,236.94,12.8457966]
[1732577092856,2.9531,237.04,236.95,19.4089]
[1732577093056,36.6226806,237.03,236.95,15.1887]
[1732577093635,36.6226806,237.03,236.95,19.4089]
[1732577094934,39.5758806,237.03,236.95,15.1887]
[1732577095140,23.776884,237.0,236.92,17.0665966]
[1732577095642,23.776884,236.98,236.9,32.2554966]
[1732577095933,12.8457966,236.97,236.9,19.4097]
[1732577096132,23.776884,236.96,236.9,19.4097]
[1732577096754,23.776884,236.96,236.9,32.2554966]
[1732577096932,23.776884,236.97,236.9,32.2554966]
[1732577097539,23.776884,236.98,236.9,32.2554966]
[1732577097736,23.776884,236.99,236.92,12.8457966]
[1732577098062,23.776884,237.0,236.94,12.8457966]
[1732577098242,26.730384,237.01,236.94,12.8457966]
[1732577098553,23.776884,237.02,236.94,12.8457966]
[1732577099055,23.776884,237.02,236.94,17.0660966]
[1732577099254,26.730184,237.02,236.94,17.0660966]
[1732577100959,12.8457966,237.05,236.96,12.8457966]
[1732577101601,12.8457966,237.03,236.94,17.0660966]
[1732577102240,12.8457966,237.01,236.92,17.0664966]
[1732577102444,12.8457966,236.99,236.92,4.2207]
[1732577102853,12.8457966,237.01,236.92,17.0664966]
[1732577103037,23.776884,236.98,236.92,17.0664966]
[1732577103460,23.776884,237.0,236.92,17.0664966]
[1732577104133,12.8457966,236.95,236.9,15.1887]
[1732577104333,12.8457966,236.95,236.85,4.222]
[1732577104334,23.776884,236.92,236.85,4.222]
[1732577104566,23.776884,236.92,236.85,12.8457966]
[1732577104937,23.776884,236.94,236.91,12.8457966]
[1732577105153,23.776884,237.0,236.91,12.8457966]
[1732577105552,12.8457966,236.97,236.89,12.8457966]
[1732577105860,23.776884,236.94,236.87,12.8457966]
[1732577106050,23.776884,236.94,236.85,17.0677966]
[1732577106051,26.731284,236.94,236.85,17.0677966]
[1732577106258,23.776884,236.94,236.87,12.8457966]
[1732577106634,23.776884,236.94,236.89,12.8457966]
[1732577106855,12.8457966,236.99,236.91,12.8457966]
[1732577107066,7.3823,237.06,236.89,0.12549]
[1732577107067,23.776884,236.98,236.89,0.12549]
[1732577107262,23.776884,237.0,236.92,12.8457966]
[1732577107648,12.8457966,237.01,236.94,12.8457966]
[1732577107853,6.38,237.08,236.89,0.12549]
[1732577107854,12.8457966,237.05,236.96,12.8457966]
[1732577108173,15.7987966,237.05,236.96,12.8457966]
[1732577108748,15.7987966,237.05,236.85,4.222]
[1732577108749,12.8457966,236.97,236.85,4.222]
[1732577108942,12.8457966,236.97,236.88,12.8457966]
[1732577109161,23.776884,236.96,236.88,12.8457966]
[1732577109562,23.776884,236.96,236.9,12.8457966]
[1732577109761,12.8457966,237.01,236.92,12.8457966]
[1732577109963,23.776884,237.0,236.92,12.8457966]
[1732577110164,12.8457966,236.99,236.9,12.8457966]
[1732577110540,23.776884,236.98,236.9,17.0668966]
[1732577110744,12.8457966,237.01,236.92,12.8457966]
[1732577111053,23.776884,237.0,236.92,12.8457966]
[1732577112572,23.776884,237.0,236.93,4.2206]
[1732577114354,23.776884,237.02,236.94,12.8457966]
[1732577115557,12.8457966,237.07,237.0,12.8457966]
[1732577115877,12.8457966,237.11,237.02,12.8457966]
[1732577116248,12.8457966,237.11,237.02,17.0646966]
[1732577117063,12.8457966,237.09,237.02,12.8457966]
[1732577117269,12.8457966,237.09,237.0,12.8457966]
[1732577117667,12.8457966,237.09,237.02,12.8457966]
[1732577118164,12.8457966,237.11,237.04,12.8457966]
[1732577118366,12.8457966,237.11,237.05,4.2185]
[1732577118563,12.8457966,237.11,237.04,12.8457966]
[1732577118755,12.8457966,237.11,237.03,4.2187]
[1732577119277,23.776884,237.1,237.03,4.2187]
[1732577120954,12.8457966,237.13,237.05,16.1407]
[1732577121275,2.9512,237.19,237.06,12.8457966]
[1732577121276,12.8457966,237.15,237.06,12.8457966]
[1732577121680,12.8457966,237.17,237.08,12.8457966]
[1732577122162,12.8457966,237.15,237.06,12.9712866]
[1732577122479,12.8457966,237.17,237.08,12.8457966]
[1732577122669,12.8457966,237.17,237.09,4.2178]
[1732577122880,12.8457966,237.15,237.09,4.2178]
[1732577123177,23.776884,237.14,237.07,4.218]
[1732577123882,12.8457966,237.15,237.07,4.218]
[1732577124052,23.776884,237.16,237.08,32.8457966]
[1732577124577,23.776884,237.16,237.1,12.8457966]
[1732577124758,12.8457966,237.23,237.14,12.8457966]
[1732577124965,12.8457966,237.23,237.16,12.8457966]
[1732577125163,0.4896887,237.24,237.2,12.8457966]
[1732577126157,0.4896887,237.24,237.17,16.1407]
[1732577126158,0.4896887,237.24,237.22,12.8457966]
[1732577126877,0.4896887,237.24,237.23,4.2153]
[1732577128463,0.4896887,237.24,237.22,12.8457966]
[1732577128775,0.4896887,237.24,237.22,17.0611966]
[1732577129171,0.4896887,237.24,237.21,6.1429]
[1732577129374,0.4896887,237.24,237.2,17.0613966]
[1732577129559,0.4896887,237.24,237.2,24.2156]
[1732577129883,0.4896887,237.24,237.21,20.0]
[1732577130059,0.4896887,237.24,237.22,12.8457966]
[1732577130260,0.4896887,237.24,237.22,17.0611966]
[1732577130461,30.4896887,237.24,237.22,17.0611966]
[1732577131627,0.4896887,237.24,237.22,17.0611966]
[1732577131784,0.4896887,237.24,237.23,0.12549]
[1732577132983,12.8457966,237.37,237.25,20.0]
[1732577133188,12.8457966,237.37,237.29,12.8457966]
[1732577133364,30.0,237.3,237.29,12.8457966]
[1732577134187,23.776884,237.36,237.29,12.8457966]
[1732577134481,23.776884,237.32,237.25,12.8457966]
[1732577134673,23.776884,237.3,237.23,12.8457966]
[1732577134874,23.776884,237.3,237.22,20.0]
[1732577134875,23.776884,237.3,237.21,32.8457966]
[1732577135066,23.776884,237.28,237.21,37.0612966]
[1732577135267,23.776884,237.28,237.21,4.2155]
[1732577135676,12.8457966,237.27,237.19,12.8457966]
[1732577135869,23.776884,237.24,237.12,4.2172]
[1732577136179,12.8457966,237.23,237.15,12.8457966]
[1732577136383,23.776884,237.22,237.15,12.8457966]
[1732577136694,23.776884,237.24,237.15,12.8457966]
[1732577136896,30.0,237.25,237.19,12.8457966]
[1732577137107,30.0,237.21,237.15,20.0]
[1732577137286,30.0,237.21,237.16,0.25098]
[1732577137490,23.776884,237.3,237.16,20.25098]
[1732577137692,23.776884,237.3,237.22,12.8457966]
[1732577137995,23.776884,237.3,237.23,4.2153]
[1732577138298,23.776884,237.3,237.22,17.0611966]
[1732577138880,23.776884,237.3,237.24,12.8457966]
[1732577139199,12.8457966,237.35,237.28,12.8457966]
[1732577139404,30.0,237.29,237.28,12.8457966]
[1732577140200,15.7947966,237.37,237.28,12.8457966]
[1732577140201,15.7947966,237.37,237.28,17.0600966]
[1732577140575,23.776884,237.34,237.28,4.2143]
[1732577141178,12.8457966,237.29,237.22,12.8457966]
[1732577141398,12.8457966,237.31,237.23,12.8457966]
[1732577141612,12.8457966,237.31,237.22,4.2154]
[1732577141613,23.776884,237.3,237.25,12.8457966]
[1732577141779,155.7247,237.41,237.27,12.8457966]
[1732577141780,12.8457966,237.35,237.27,12.8457966]
[1732577141980,23.776884,237.34,237.27,12.8457966]
[1732577142184,30.0,237.28,237.27,12.8457966]
[1732577142601,30.0,237.28,237.27,12.9712866]
[1732577142783,30.0,237.28,237.27,13.0967766]
[1732577143105,30.0,237.28,237.27,17.3113766]
[1732577143401,12.8457966,237.41,237.31,0.12549]
[1732577143582,12.8457966,237.43,237.34,12.8457966]
[1732577144706,23.776884,237.42,237.34,12.8457966]
[1732577146089,23.776884,237.42,237.34,17.0590966]
[1732577146786,12.8457966,237.43,237.36,12.8457966]
[1732577147102,12.8457966,237.45,237.38,12.8457966]
[1732577147403,30.0,237.39,237.38,12.8457966]
[1732577147807,12.8457966,237.45,237.38,12.8457966]
[1732577148193,23.776884,237.45,237.38,12.8457966]
[1732577148687,0.4896887,237.47,237.38,4.2124]
[1732577148887,0.4896887,237.47,237.44,12.8457966]
[1732577149102,30.0,237.45,237.44,12.8457966]
[1732577149402,0.4896887,237.47,237.44,12.8457966]
[1732577149603,0.4896887,237.47,237.46,12.8457966]
[1732577150011,0.4896887,237.47,237.44,12.8457966]
[1732577150309,0.4896887,237.47,237.4,12.8457966]
[1732577150486,30.0,237.46,237.4,17.0579966]
[1732577153014,23.776884,237.45,237.4,12.8457966]
[1732577153310,30.0,237.44,237.38,17.0582966]
[1732577153487,30.0,237.44,237.38,12.8457966]
[1732577154703,30.0,237.44,237.38,17.0582966]